bitfinex/quotes_BTCUSD_20240820
["timestamp","ask_amount","ask_price","bid_price","bid_amount"]
[1724152185028,0.02152946,60745.0,60744.0,0.001]
[1724152186338,0.02152946,60745.0,60744.0,0.03725566]
[1724152194144,0.02252946,60745.0,60744.0,0.03725566]
[1724152194346,0.56962746,60745.0,60744.0,0.03725566]
[1724152194578,0.83302346,60745.0,60744.0,0.001]
[1724152194928,0.83502346,60745.0,60744.0,0.001]
[1724152195504,0.57162746,60745.0,60744.0,0.001]
[1724152195922,0.43992946,60745.0,60744.0,0.001]
[1724152196138,0.43592946,60745.0,60744.0,0.001]
[1724152196345,0.25142946,60745.0,60744.0,0.001]
[1724152196748,0.25142946,60745.0,60744.0,0.03725626]
[1724152197087,0.25242946,60745.0,60744.0,0.03725626]
[1724152197474,0.25242946,60745.0,60744.0,0.0372566]
[1724152197677,0.42802946,60745.0,60744.0,0.0372566]
[1724152197899,0.42802946,60745.0,60744.0,0.001]
[1724152198280,0.42902946,60745.0,60744.0,0.001]
[1724152199558,0.42502946,60745.0,60744.0,0.001]
[1724152199810,0.04919323,60751.0,60744.0,0.001]
[1724152199811,0.04983421,60755.0,60745.0,0.2236]
[1724152200012,0.05183421,60755.0,60746.0,0.04532067]
[1724152200220,0.004,60750.0,60747.0,0.04532067]
[1724152200434,0.004,60750.0,60748.0,0.03625666]
[1724152200435,0.133689,60749.0,60748.0,0.03625666]
[1724152200643,0.416789,60749.0,60748.0,0.03625666]
[1724152201066,0.2851,60749.0,60748.0,0.03625666]
[1724152201308,0.2851,60749.0,60745.0,0.001]
[1724152201499,0.004,60747.0,60746.0,0.04531595]
[1724152201924,0.004,60747.0,60746.0,0.04631595]
[1724152202133,0.004,60747.0,60746.0,0.04531595]
[1724152202379,0.002,60747.0,60746.0,0.04531595]
[1724152203493,0.004,60747.0,60746.0,0.04531595]
[1724152203915,0.004,60747.0,60746.0,0.04731595]
[1724152204336,0.004,60747.0,60746.0,0.03825276]
[1724152204549,0.190827,60747.0,60746.0,0.03825276]
[1724152204765,0.55662,60747.0,60746.0,0.002]
[1724152205207,0.820007,60747.0,60746.0,0.002]
[1724152205404,1.24739698,60747.0,60746.0,0.002]
[1724152205645,0.98400998,60747.0,60746.0,0.002]
[1724152205830,1.24739698,60747.0,60746.0,0.002]
[1724152206042,0.2413,60742.0,60741.0,0.0009097]
[1724152206240,0.2413,60742.0,60741.0,0.03716667]
[1724152206452,0.4253,60742.0,60741.0,0.03716667]
[1724152206675,0.4253,60742.0,60741.0,0.0009097]
[1724152206882,0.4273,60742.0,60741.0,0.0009097]
[1724152207500,0.43743059,60742.0,60741.0,0.0009097]
[1724152207947,0.43743059,60742.0,60741.0,0.0019097]
[1724152208805,0.43743059,60742.0,60735.0,0.00053381]
[1724152208806,0.004,60736.0,60735.0,0.00053381]
[1724152209002,0.229,60736.0,60735.0,0.03679431]
[1724152209177,0.23914129,60736.0,60735.0,0.03679431]
[1724152209381,0.23514129,60736.0,60735.0,0.03679431]
[1724152209789,0.23914129,60736.0,60735.0,0.03679431]
[1724152209987,0.24014129,60736.0,60735.0,0.04279431]
[1724152210250,0.23814129,60736.0,60735.0,0.00753381]
[1724152210449,0.23814129,60736.0,60735.0,0.04379432]
[1724152210626,0.24014129,60736.0,60735.0,0.00653381]
[1724152210830,0.23614129,60736.0,60735.0,0.00653381]
[1724152211051,0.23714129,60736.0,60735.0,0.01353381]
[1724152211259,0.01214129,60736.0,60735.0,0.4470939]
[1724152211670,0.002,60736.0,60735.0,0.45615902]
[1724152211872,0.001,60736.0,60735.0,0.45015902]
[1724152212079,0.001,60736.0,60735.0,0.45215902]
[1724152212489,0.001,60736.0,60735.0,0.44515902]
[1724152212705,0.002,60745.0,60735.0,0.44515902]
[1724152212905,0.001,60740.0,60736.0,0.03626009]
[1724152213101,0.001,60740.0,60737.0,0.03626009]
[1724152213336,0.001,60740.0,60735.0,0.00653381]
[1724152213337,0.001,60736.0,60735.0,0.00653381]
[1724152213551,0.2305,60740.0,60735.0,0.0427919]
[1724152213761,0.01108015,60736.0,60735.0,0.01353381]
[1724152213962,0.001,60736.0,60735.0,0.0497919]
[1724152214159,0.01108837,60736.0,60735.0,0.0427919]
[1724152214310,0.01008837,60736.0,60735.0,0.0427919]
[1724152214521,0.002,60739.0,60735.0,0.0427919]
[1724152214717,0.2325,60740.0,60736.0,0.03625809]
[1724152214952,0.2325,60740.0,60737.0,0.03625809]
[1724152215164,0.2305,60740.0,60735.0,0.00653381]
[1724152215354,0.2305,60740.0,60736.0,0.0362581]
[1724152215625,0.2305,60740.0,60737.0,0.0362581]
[1724152215774,0.2305,60740.0,60735.0,0.00653381]
[1724152215775,0.2305,60740.0,60738.0,0.0362581]
[1724152215981,0.2305,60740.0,60735.0,0.00653381]
[1724152216306,0.2305,60740.0,60736.0,0.03625809]
[1724152216546,0.2305,60740.0,60737.0,0.03925809]
[1724152216760,0.002,60739.0,60738.0,0.03625809]
[1724152216967,0.002,60739.0,60735.0,0.00553381]
[1724152216968,0.1822,60738.0,60735.0,0.00553381]
[1724152217136,0.004,60736.0,60735.0,0.00553381]
[1724152217345,0.1822,60738.0,60735.0,0.00553381]
[1724152217751,0.2325,60740.0,60735.0,0.00553381]
[1724152217911,0.002,60739.0,60738.0,0.005]
[1724152218311,0.004,60739.0,60738.0,0.005]
[1724152219126,0.2345,60740.0,60738.0,0.005]
[1724152219329,0.002,60739.0,60738.0,0.005]
[1724152219777,0.01208444,60739.0,60738.0,0.007]
[1724152219947,0.01408444,60739.0,60738.0,0.007]
[1724152220149,0.01408444,60739.0,60738.0,0.002]
[1724152221811,0.01008444,60739.0,60738.0,0.002]
[1724152222466,0.01008444,60739.0,60738.0,0.95744198]
[1724152222667,0.472527,60747.0,60738.0,0.59856129]
[1724152222878,0.01004916,60746.0,60741.0,0.131706]
[1724152223071,0.01004916,60746.0,60742.0,0.131703]
[1724152223470,0.01004916,60746.0,60740.0,0.42741798]
[1724152223679,0.01004916,60746.0,60741.0,0.03625632]
[1724152223879,0.01004916,60746.0,60740.0,0.42741798]
[1724152224102,0.01004916,60746.0,60741.0,0.16796231]
[1724152224325,0.01004916,60746.0,60741.0,0.131706]
[1724152224902,0.01804916,60746.0,60741.0,0.131706]
[1724152225286,0.01004916,60746.0,60741.0,0.131706]
[1724152225684,0.01604916,60746.0,60742.0,0.001]
[1724152226256,0.01004916,60746.0,60743.0,0.03625433]
[1724152226462,0.01004916,60746.0,60744.0,0.03625433]
[1724152226643,0.01004916,60746.0,60741.0,0.14077007]
[1724152226644,0.01804916,60746.0,60745.0,0.03625433]
[1724152226849,0.01804916,60746.0,60745.0,0.27455433]
[1724152227054,0.01804916,60746.0,60745.0,0.2383]
[1724152227055,0.01004916,60746.0,60745.0,0.2383]
[1724152227220,0.470527,60747.0,60745.0,0.27455288]
[1724152227445,0.470527,60747.0,60746.0,0.03625288]
[1724152227621,0.000827,60747.0,60746.0,0.03625288]
[1724152228228,0.000827,60747.0,60746.0,0.321695]
[1724152228409,0.000827,60747.0,60746.0,0.62133871]
[1724152228608,0.000827,60747.0,60746.0,0.62133804]
[1724152229401,0.000827,60747.0,60746.0,1.04873202]
[1724152229616,0.000827,60747.0,60746.0,1.04823202]
[1724152229819,0.000827,60747.0,60746.0,1.01197998]
[1724152230053,0.000827,60747.0,60746.0,1.04823141]
[1724152230858,0.000827,60747.0,60746.0,1.05223141]
[1724152231133,0.000827,60747.0,60746.0,1.27623141]
[1724152231352,0.000827,60747.0,60746.0,1.28329373]
[1724152231581,0.000827,60747.0,60746.0,1.27723141]
[1724152231793,0.000827,60747.0,60746.0,1.27722841]
[1724152231980,0.000827,60747.0,60746.0,1.28629052]
[1724152232177,0.000827,60747.0,60746.0,1.28229052]
[1724152232377,0.000827,60747.0,60746.0,1.28729052]
[1724152233051,0.000827,60747.0,60746.0,1.28629052]
[1724152233244,0.000827,60747.0,60746.0,1.28329015]
[1724152233444,0.000827,60747.0,60746.0,1.26922812]
[1724152233677,0.001827,60747.0,60746.0,1.28529015]
[1724152233874,0.001827,60747.0,60746.0,1.28422812]
[1724152233875,0.002827,60747.0,60746.0,1.28422812]
[1724152234124,0.002827,60747.0,60746.0,1.29329015]
[1724152234361,0.002827,60747.0,60746.0,1.28422812]
[1724152234583,0.001827,60747.0,60746.0,1.27722812]
[1724152234983,0.001827,60747.0,60746.0,1.28622812]
[1724152234984,0.002827,60747.0,60746.0,1.28622812]
[1724152241364,0.002827,60747.0,60746.0,2.27337098]
[1724152241555,0.002827,60747.0,60746.0,2.31868134]
[1724152243180,0.002827,60747.0,60746.0,2.31968134]
[1724152243332,0.002827,60747.0,60746.0,2.58307234]
[1724152244888,0.002827,60747.0,60746.0,3.04811115]
[1724152245117,0.002827,60747.0,60746.0,3.11072184]
[1724152245288,0.002827,60747.0,60746.0,3.01228212]
[1724152245492,0.002827,60747.0,60746.0,2.91342121]
[1724152245667,0.002827,60747.0,60746.0,3.0122591]
[1724152245875,0.002827,60747.0,60746.0,3.02213823]
[1724152246077,0.000827,60747.0,60746.0,3.00513823]
[1724152246282,0.000827,60747.0,60746.0,2.99525484]
[1724152246501,0.002827,60747.0,60746.0,3.02325484]
[1724152246702,0.001827,60747.0,60746.0,3.00925484]
[1724152246980,0.000827,60747.0,60746.0,3.00596067]
[1724152247182,0.000827,60747.0,60746.0,3.01996067]
[1724152247367,0.002827,60747.0,60746.0,3.03396067]
[1724152247568,0.001827,60747.0,60746.0,3.01996067]
[1724152247767,0.000827,60747.0,60746.0,3.00596067]
[1724152247969,0.001827,60747.0,60746.0,3.04634383]
[1724152248192,0.002827,60747.0,60746.0,3.04634383]
[1724152249556,0.002827,60747.0,60746.0,3.0613148]
[1724152249764,0.002827,60747.0,60746.0,3.16920779]
[1724152250559,0.002827,60747.0,60746.0,2.93845006]
[1724152250768,0.002827,60747.0,60746.0,3.04634322]
[1724152251462,0.002827,60747.0,60746.0,3.144595]
[1724152252450,0.002827,60747.0,60746.0,3.14433205]
[1724152253397,0.002827,60747.0,60746.0,3.04608027]
[1724152253608,0.002827,60747.0,60746.0,3.36247127]
[1724152254007,0.002827,60747.0,60746.0,3.44060639]
[1724152254369,0.002827,60747.0,60746.0,4.04235461]
[1724152255399,0.002827,60747.0,60746.0,4.04326321]
[1724152255807,0.002827,60747.0,60746.0,3.34326321]
[1724152256390,0.002827,60747.0,60746.0,3.33337987]
[1724152257272,0.002827,60747.0,60746.0,4.03337987]
[1724152259269,0.002827,60747.0,60746.0,3.75466057]
[1724152259871,0.002827,60747.0,60746.0,4.03387889]
[1724152260125,0.000826,60754.0,60753.0,1.869085]
[1724152260339,0.000826,60754.0,60753.0,2.96138663]
[1724152260540,0.000826,60754.0,60753.0,3.0338632]
[1724152261001,0.000826,60754.0,60753.0,3.02398114]
[1724152261188,0.000826,60754.0,60753.0,3.02396726]
[1724152261740,0.001826,60754.0,60753.0,3.73796726]
[1724152262362,0.002826,60754.0,60753.0,3.76240254]
[1724152263023,0.001826,60754.0,60753.0,3.74840254]
[1724152263233,0.002826,60754.0,60753.0,3.76240254]
[1724152263360,0.001826,60754.0,60753.0,3.74840254]
[1724152263565,0.001826,60754.0,60753.0,3.76240254]
[1724152264514,0.001826,60754.0,60753.0,3.4614883]
[1724152264739,0.001826,60754.0,60753.0,3.46560626]
[1724152264943,0.001826,60754.0,60753.0,3.35772698]
[1724152265144,0.001826,60754.0,60753.0,2.76560933]
[1724152265373,0.000826,60754.0,60753.0,2.75160933]
[1724152265752,0.000826,60754.0,60753.0,2.76560933]
[1724152266097,0.000826,60754.0,60753.0,2.71537406]
[1724152266319,0.000826,60754.0,60753.0,2.75160937]
[1724152266519,0.000826,60754.0,60753.0,2.76560937]
[1724152266719,0.000826,60754.0,60753.0,2.06864837]
[1724152266949,0.000826,60754.0,60753.0,1.99700129]
[1724152267144,0.000826,60754.0,60753.0,2.0060626]
[1724152267345,0.001826,60754.0,60753.0,2.0200626]
[1724152268630,0.185426,60754.0,60753.0,1.2600626]
[1724152269056,0.185426,60754.0,60753.0,0.9677016]
[1724152269057,0.184426,60754.0,60753.0,0.9677016]
[1724152269263,0.184426,60754.0,60753.0,0.95864228]
[1724152269522,0.414326,60754.0,60753.0,0.70928128]
[1724152269740,0.414326,60754.0,60753.0,0.67304398]
[1724152269952,0.41988658,60754.0,60753.0,0.70928864]
[1724152270545,0.42088658,60754.0,60753.0,0.34592764]
[1724152271015,0.41988658,60754.0,60753.0,0.60928864]
[1724152271196,0.00738658,60754.0,60753.0,1.80664964]
[1724152271341,0.00638658,60754.0,60753.0,2.0660718]
[1724152271550,0.000826,60754.0,60753.0,1.8027108]
[1724152271770,0.001826,60754.0,60753.0,2.0800718]
[1724152273608,0.001826,60754.0,60753.0,2.08006879]
[1724152273815,0.001826,60754.0,60753.0,2.08006845]
[1724152274262,0.001826,60754.0,60753.0,2.04382647]
[1724152274471,0.001826,60754.0,60753.0,2.14266818]
[1724152274725,0.001826,60754.0,60753.0,2.08006843]
[1724152275564,0.001826,60754.0,60753.0,2.14266818]
[1724152275695,0.001826,60754.0,60753.0,2.08006843]
[1724152275897,0.177126,60754.0,60753.0,2.08006843]
[1724152277025,0.177126,60754.0,60753.0,1.26006843]
[1724152277687,0.177126,60754.0,60753.0,1.26006781]
[1724152278106,0.001826,60754.0,60753.0,1.26006781]
[1724152278324,0.001826,60754.0,60753.0,1.3093234]
[1724152278902,0.001826,60754.0,60753.0,2.0193234]
[1724152279598,0.001826,60754.0,60753.0,1.97006781]
[1724152281651,0.001826,60754.0,60753.0,2.03489084]
[1724152281867,0.001826,60754.0,60753.0,2.0439512]
[1724152282435,0.001826,60754.0,60753.0,2.33626072]
[1724152283410,0.001826,60754.0,60753.0,2.33630004]
[1724152284930,0.001826,60754.0,60753.0,0.07330183]
[1724152284931,0.422426,60754.0,60753.0,0.07330183]
[1724152285128,0.43197611,60754.0,60753.0,0.06424147]
[1724152285360,0.42797611,60754.0,60753.0,0.028]
[1724152285771,0.42797611,60754.0,60753.0,0.014]
[1724152286185,0.42997611,60754.0,60753.0,0.025]
[1724152286405,0.43197611,60754.0,60753.0,0.025]
[1724152286826,0.56365411,60754.0,60753.0,0.025]
[1724152287241,0.56265411,60754.0,60753.0,0.011]
[1724152287453,0.56365411,60754.0,60753.0,0.01]
[1724152287652,0.82701111,60754.0,60753.0,0.01]
[1724152287856,0.82701111,60754.0,60747.0,0.0009086]
[1724152287857,0.428,60748.0,60747.0,0.0009086]
[1724152288299,0.43352792,60748.0,60747.0,0.0009086]
[1724152288707,0.43452792,60748.0,60747.0,0.0009086]
[1724152289464,0.43452792,60748.0,60747.0,0.0099086]
[1724152289465,0.43652792,60748.0,60747.0,0.0099086]
[1724152290094,0.43652792,60748.0,60735.0,0.00053381]
[1724152290095,0.002,60736.0,60735.0,0.00053381]
[1724152290329,0.6281,60736.0,60735.0,0.00053381]
[1724152290570,0.76529924,60736.0,60735.0,0.00053381]
[1724152290770,0.63358224,60736.0,60735.0,0.00053381]
[1724152291435,0.63358224,60736.0,60735.0,0.00153381]
[1724152291874,0.62958224,60736.0,60735.0,0.00053381]
[1724152292072,0.63158224,60736.0,60735.0,0.00053381]
[1724152292187,0.63158224,60736.0,60735.0,0.00553381]
[1724152292432,0.62958224,60736.0,60735.0,0.00553381]
[1724152292666,0.34848224,60736.0,60735.0,0.00553381]
[1724152293051,0.48219924,60736.0,60735.0,0.00553381]
[1724152293262,0.48419924,60736.0,60735.0,0.00553381]
[1724152293470,0.74763424,60736.0,60735.0,0.00553381]
[1724152294306,0.74763424,60736.0,60735.0,0.00253381]
[1724152294505,0.74763424,60736.0,60735.0,0.00053381]
[1724152294715,0.48919924,60736.0,60735.0,0.00053381]
[1724152294910,0.49419924,60736.0,60735.0,0.00053381]
[1724152295137,0.48419924,60736.0,60735.0,0.00053381]
[1724152295539,0.75763424,60736.0,60735.0,0.00053381]
[1724152295741,0.49419924,60736.0,60735.0,0.00053381]
[1724152295944,0.75763424,60736.0,60735.0,0.00053381]
[1724152296161,0.75763424,60736.0,60730.0,0.0009097]
[1724152296162,0.004,60731.0,60730.0,0.0009097]
[1724152296358,0.004,60731.0,60706.0,0.03626198]
[1724152296359,0.1881,60718.0,60711.0,0.0002]
[1724152296563,0.92243892,60731.0,60711.0,0.0002]
[1724152296564,0.004,60713.0,60711.0,0.0002]
[1724152296816,0.4049,60715.0,60711.0,0.0002]
[1724152296817,0.23198696,60712.0,60711.0,0.0002]
[1724152297000,0.23098696,60712.0,60711.0,0.0002]
[1724152298245,0.41758696,60712.0,60711.0,0.0002]
[1724152298480,0.53688481,60712.0,60711.0,0.0002]
[1724152298702,0.55135596,60712.0,60711.0,0.0002]
[1724152298901,0.81489496,60712.0,60711.0,0.0002]
[1724152299238,0.81489496,60712.0,60711.0,0.0012]
[1724152299454,0.56435596,60712.0,60711.0,0.0012]
[1724152300247,0.82789496,60712.0,60711.0,0.0012]
[1724152300558,1.09143396,60712.0,60711.0,0.0012]
[1724152300771,0.82789496,60712.0,60711.0,0.0012]
[1724152300968,0.82189496,60712.0,60711.0,0.0012]
[1724152301115,0.55135596,60712.0,60711.0,0.0002]
[1724152301318,0.55835596,60712.0,60711.0,0.0012]
[1724152301519,0.56935596,60712.0,60711.0,0.0022]
[1724152301750,0.43758696,60712.0,60711.0,0.0022]
[1724152301949,0.43758696,60712.0,60711.0,0.0002]
[1724152301950,0.41558696,60712.0,60711.0,0.0002]
[1724152302154,0.00538696,60712.0,60711.0,0.29597398]
[1724152302350,0.01238696,60712.0,60711.0,0.56051698]
[1724152302692,0.006,60712.0,60711.0,1.08660298]
[1724152303044,0.017,60712.0,60711.0,0.82405998]
[1724152303899,0.017,60712.0,60711.0,0.0012]
[1724152304214,0.21366722,60712.0,60711.0,0.0012]
[1724152304418,0.20266722,60712.0,60711.0,0.0011086]
[1724152304803,0.20366722,60712.0,60711.0,0.0091086]
[1724152305016,0.20366722,60712.0,60711.0,0.0011086]
[1724152305220,0.20466722,60712.0,60711.0,0.0011086]
[1724152305420,0.43576722,60712.0,60711.0,0.0061086]
[1724152305833,0.43476722,60712.0,60711.0,0.0091086]
[1724152306034,0.43076722,60712.0,60711.0,0.0091086]
[1724152306263,0.43076722,60712.0,60711.0,0.0061086]
[1724152306465,0.43276722,60712.0,60711.0,0.0061086]
[1724152306666,0.43476722,60712.0,60711.0,0.0121086]
[1724152307801,0.56653622,60712.0,60711.0,0.0121086]
[1724152308212,0.83007522,60712.0,60711.0,0.0121086]
[1724152308408,0.56653622,60712.0,60711.0,0.0121086]
[1724152308632,0.56653622,60712.0,60711.0,0.0071086]
[1724152308836,0.56653622,60712.0,60711.0,0.0011086]
[1724152309033,0.56653622,60712.0,60711.0,0.0021086]
[1724152309034,0.57253622,60712.0,60711.0,0.0021086]
[1724152309239,0.57253622,60712.0,60711.0,0.0011086]
[1724152309240,0.57153622,60712.0,60711.0,0.0011086]
[1724152309655,0.57253622,60712.0,60711.0,0.0021086]
[1724152310078,0.57753622,60712.0,60711.0,0.0021086]
[1724152310526,0.44576722,60712.0,60711.0,0.0021086]
[1724152313984,1.37572262,60712.0,60711.0,0.0021086]
[1724152314182,1.63926162,60712.0,60711.0,1.6e-07]
[1724152314403,1.37572262,60712.0,60711.0,1.6e-07]
[1724152314582,1.0280782,60712.0,60711.0,1.6e-07]
[1724152314804,0.44576722,60712.0,60711.0,1.6e-07]
[1724152315015,0.44576722,60712.0,60701.0,0.0210232]
[1724152315016,0.004,60711.0,60701.0,0.0210232]
[1724152315397,0.004,60705.0,60701.0,0.0210232]
[1724152315629,0.001,60702.0,60701.0,0.0210232]
[1724152315867,0.003,60702.0,60701.0,0.0210232]
[1724152316076,1.25049297,60702.0,60701.0,0.0210232]
[1724152316287,0.98606729,60702.0,60701.0,0.0210232]
[1724152316502,0.92290799,60702.0,60701.0,0.0210232]
[1724152317095,1.18648999,60702.0,60701.0,0.0210232]
[1724152317250,0.92290799,60702.0,60701.0,0.0210232]
[1724152317457,0.00513499,60702.0,60701.0,0.18502618]
[1724152317658,0.0065329,60702.0,60701.0,0.0210232]
[1724152317834,0.2342,60711.0,60701.0,0.0220232]
[1724152317835,0.006,60705.0,60701.0,0.0220232]
[1724152318040,0.006,60705.0,60702.0,0.29579298]
[1724152318257,0.1892,60712.0,60702.0,0.29579298]
[1724152318501,0.1892,60712.0,60702.0,0.16400298]
[1724152318854,0.1892,60712.0,60701.0,0.0210232]
[1724152318855,0.2811,60704.0,60701.0,0.0210232]
[1724152319180,0.002,60703.0,60701.0,0.0210232]
[1724152319386,0.002,60703.0,60702.0,0.001]
[1724152319614,0.5133,60704.0,60701.0,0.0220232]
[1724152319615,0.2322,60704.0,60701.0,0.0220232]
[1724152319802,0.2322,60704.0,60701.0,0.0210232]
[1724152320205,0.001,60702.0,60701.0,0.0220232]
[1724152320732,0.001,60702.0,60701.0,0.0210232]
[1724152321416,0.001,60702.0,60701.0,0.0220232]
[1724152321661,0.004,60704.0,60703.0,0.003]
[1724152321915,0.004,60704.0,60703.0,0.35800298]
[1724152322419,0.355589,60715.0,60703.0,0.35800298]
[1724152322661,0.002,60711.0,60704.0,0.16400298]
[1724152323309,0.002,60713.0,60704.0,0.16400298]
[1724152323509,0.133768,60713.0,60704.0,0.16400298]
[1724152323732,0.002,60713.0,60703.0,0.003]
[1724152324006,0.2389,60706.0,60703.0,0.004]
[1724152324226,0.370682,60706.0,60703.0,0.004]
[1724152324428,0.2389,60706.0,60703.0,0.003]
[1724152324633,0.00662288,60705.0,60703.0,0.003]
[1724152324803,0.131787,60704.0,60703.0,0.003]
[1724152325039,0.13842145,60704.0,60703.0,0.003]
[1724152325211,0.00663445,60704.0,60703.0,0.004]
[1724152325424,0.00663445,60704.0,60703.0,0.003]
[1724152325615,0.14042145,60704.0,60703.0,0.003]
[1724152325766,0.66756945,60704.0,60703.0,0.003]
[1724152326120,0.89576945,60704.0,60703.0,0.003]
[1724152326326,1.15934345,60704.0,60703.0,0.003]
[1724152326525,0.89576945,60704.0,60703.0,0.003]
[1724152326737,0.89576945,60704.0,60703.0,0.004]
[1724152326962,0.89576945,60704.0,60703.0,0.003]
[1724152327339,0.91776945,60704.0,60703.0,0.005]
[1724152327749,0.25883445,60704.0,60703.0,0.005]
[1724152327959,0.25883445,60704.0,60703.0,0.004]
[1724152327960,0.02163445,60704.0,60703.0,0.004]
[1724152328744,0.02163445,60704.0,60695.0,0.1709232]
[1724152328745,0.002,60703.0,60695.0,0.1709232]
[1724152328965,0.002,60703.0,60696.0,0.16400298]
[1724152329180,0.00662288,60702.0,60696.0,0.16400298]
[1724152329442,0.00662288,60702.0,60696.0,0.29580598]
[1724152329691,0.00662288,60701.0,60696.0,0.16400298]
[1724152330145,0.002,60710.0,60698.0,0.131799]
[1724152330373,0.002,60710.0,60699.0,0.16400298]
[1724152330571,0.006,60702.0,60699.0,0.16400298]
[1724152330996,0.012,60704.0,60699.0,0.16400298]
[1724152331422,0.012,60704.0,60700.0,0.03628068]
[1724152331423,0.49229154,60702.0,60700.0,0.03628068]
[1724152331633,0.131813,60692.0,60686.0,0.009086]
[1724152331842,0.544513,60692.0,60686.0,0.009086]
[1724152332044,0.809139,60692.0,60686.0,0.009086]
[1724152332252,0.81558919,60692.0,60686.0,0.009086]
[1724152332458,0.42015019,60692.0,60686.0,0.009086]
[1724152332674,0.55196319,60692.0,60686.0,0.009086]
[1724152332871,0.81558919,60692.0,60686.0,0.009086]
[1724152333672,0.82558919,60692.0,60691.0,0.0012]
[1724152333983,0.81958919,60692.0,60691.0,0.0002]
[1724152335241,0.55596319,60692.0,60691.0,0.0002]
[1724152335444,0.42415019,60692.0,60691.0,0.0002]
[1724152335644,0.55596319,60692.0,60691.0,0.0002]
[1724152335873,0.56196319,60692.0,60691.0,0.0002]
[1724152336283,0.01745019,60692.0,60691.0,0.0002]
[1724152336724,0.012,60692.0,60691.0,0.0002]
[1724152336931,0.0174444,60692.0,60691.0,0.0002]
[1724152340625,1.0940094,60692.0,60691.0,0.0011086]
[1724152341082,1.3576354,60692.0,60691.0,0.0011086]
[1724152341237,1.52150894,60692.0,60691.0,0.0011086]
[1724152342628,1.51150894,60692.0,60691.0,0.0011086]
[1724152343127,1.51150894,60692.0,60691.0,0.0021086]
[1724152343128,1.52750894,60692.0,60691.0,0.0021086]
[1724152344216,1.3636354,60692.0,60691.0,0.0021086]
[1724152345334,1.1000094,60692.0,60691.0,0.0021086]
[1724152345713,0.8363834,60692.0,60691.0,0.0021086]
[1724152345920,0.4188834,60692.0,60691.0,0.0021086]
[1724152346323,0.1552574,60692.0,60691.0,0.0021086]
[1724152346665,0.0234444,60692.0,60691.0,0.0021086]
[1724152351532,0.0234444,60692.0,60691.0,0.02531806]
[1724152351947,0.0234444,60692.0,60691.0,0.0021086]
[1724152355073,0.0214444,60692.0,60691.0,1.59231516]
[1724152355286,0.0214444,60692.0,60691.0,2.1286473]
[1724152355520,0.016,60692.0,60691.0,1.8660173]
[1724152355696,0.016,60692.0,60691.0,1.56609688]
[1724152355897,0.007,60692.0,60691.0,1.86600905]
[1724152356103,0.000826,60696.0,60693.0,0.26362]
[1724152356280,0.000826,60696.0,60692.0,0.232]
[1724152356281,0.000826,60696.0,60694.0,0.33209215]
[1724152356481,0.000826,60696.0,60695.0,0.40898817]
[1724152356693,0.000826,60696.0,60695.0,0.57299115]
[1724152356895,0.000826,60696.0,60695.0,1.01420415]
[1724152357792,0.000826,60696.0,60695.0,2.05781715]
[1724152358250,0.000826,60696.0,60695.0,1.28788519]
[1724152358471,0.000826,60696.0,60695.0,1.27881515]
[1724152359101,0.000826,60696.0,60695.0,2.36242815]
[1724152359274,0.000826,60696.0,60695.0,2.11388519]
[1724152359275,0.001826,60696.0,60695.0,2.11388519]
[1724152359492,0.001826,60696.0,60695.0,2.11388477]
[1724152359852,0.001826,60696.0,60695.0,2.0716046]
[1724152359853,0.000826,60696.0,60695.0,2.0716046]
[1724152360056,0.000826,60696.0,60695.0,2.10788295]
[1724152360246,0.002826,60696.0,60695.0,2.11488295]
[1724152361018,0.002826,60696.0,60695.0,2.37849595]
[1724152363500,0.002826,60696.0,60695.0,2.37849481]
[1724152363722,0.002826,60696.0,60695.0,1.55849481]
[1724152363853,0.002826,60696.0,60695.0,1.29488181]
[1724152364053,0.002826,60696.0,60695.0,1.24953498]
[1724152365295,0.002826,60696.0,60695.0,0.17100298]
[1724152366879,0.004826,60696.0,60695.0,0.17100298]
[1724152367147,0.002826,60696.0,60695.0,0.17100298]
[1724152368319,0.004826,60696.0,60695.0,0.17100298]
[1724152369510,0.004826,60696.0,60695.0,1.05280898]
[1724152369511,0.002826,60696.0,60695.0,1.05280898]
[1724152369793,0.002826,60696.0,60695.0,0.17100298]
[1724152370005,0.002826,60696.0,60695.0,0.30280898]
[1724152370207,0.002826,60696.0,60695.0,1.41642198]
[1724152370351,0.002826,60696.0,60695.0,1.90253498]
[1724152370551,0.002826,60696.0,60695.0,1.9388159]
[1724152371117,0.002826,60696.0,60695.0,1.93881456]
[1724152372799,0.002826,60696.0,60695.0,0.82520156]
[1724152373007,0.002826,60696.0,60695.0,0.78892198]
[1724152373168,0.002826,60696.0,60695.0,0.17100298]
[1724152373972,0.001826,60696.0,60695.0,0.16500298]
[1724152374150,0.000826,60696.0,60695.0,0.2103704]
[1724152374379,0.002826,60696.0,60695.0,0.17000298]
[1724152374760,0.001826,60696.0,60695.0,0.30180898]
[1724152375202,0.001826,60696.0,60695.0,0.17000298]
[1724152375560,0.001826,60696.0,60695.0,0.30180898]
[1724152375755,0.000826,60696.0,60695.0,0.29910378]
[1724152376172,0.001826,60696.0,60695.0,0.30080898]
[1724152376380,0.002826,60696.0,60695.0,0.30080898]
[1724152376731,0.000826,60696.0,60695.0,0.29580898]
[1724152376947,0.002826,60696.0,60695.0,0.29980898]
[1724152377152,0.002826,60696.0,60695.0,1.14699716]
[1724152377352,0.002826,60696.0,60695.0,0.34606705]
[1724152377564,0.002826,60696.0,60695.0,0.60061016]
[1724152377772,0.001826,60696.0,60695.0,0.60061016]
[1724152378150,0.002826,60696.0,60695.0,0.60061016]
[1724152378952,0.001826,60696.0,60695.0,0.59661016]
[1724152379354,0.001826,60696.0,60695.0,0.60161016]
[1724152379673,0.002826,60696.0,60695.0,0.60161016]
[1724152379875,0.002826,60696.0,60695.0,0.33299716]
[1724152379876,0.001826,60696.0,60695.0,0.33299716]
[1724152380141,0.224326,60696.0,60695.0,0.0059086]
[1724152380287,0.54783,60696.0,60695.0,0.0059086]
[1724152380493,0.81654471,60696.0,60695.0,0.0059086]
[1724152380831,1.08015271,60696.0,60695.0,0.0059086]
[1724152381036,1.07915271,60696.0,60695.0,0.0059086]
[1724152381561,1.08115271,60696.0,60695.0,0.0009086]
[1724152382836,1.08115271,60696.0,60695.0,0.0049086]